bitfinex-derivatives/quotes_ETHF0:USTF0_20250428
["timestamp","ask_amount","ask_price","bid_price","bid_amount"]
[1745854227032,3.6464195,1762.8,1762.7,1.13411]
[1745854227533,7.0495595,1762.8,1762.7,1.13411]
[1745854227733,5.9155195,1762.8,1762.7,1.13411]
[1745854228036,5.9155195,1762.8,1762.7,6.46511]
[1745854228626,5.9155195,1762.8,1762.7,9.67291]
[1745854229122,3.6464195,1763.4,1763.3,1.13372]
[1745854229336,3.6464195,1763.4,1763.3,9.67252]
[1745854229636,4.09751462,1763.4,1763.3,9.67252]
[1745854230433,3.6464195,1763.4,1763.3,9.67252]
[1745854231438,3.6464195,1763.4,1763.3,14.67252]
[1745854231828,3.6464195,1763.4,1763.3,55.47252]
[1745854232342,3.6464195,1763.4,1763.3,50.47252]
[1745854232532,3.6464195,1763.4,1763.3,45.14152]
[1745854232729,3.6464195,1763.4,1763.3,40.8]
[1745854233036,4.7800795,1763.4,1763.3,40.8]
[1745854233230,6.98297013,1763.4,1763.3,40.8]
[1745854233429,5.84931013,1763.4,1763.3,41.93372]
[1745854233629,4.09681013,1763.4,1763.3,41.93372]
[1745854233834,3.6464195,1763.4,1763.3,45.14152]
[1745854234732,1.1339,1763.1,1762.7,2.83512]
[1745854234935,1.13384,1763.2,1763.1,1.13385]
[1745854235136,3.26323784,1763.2,1762.8,7.6572]
[1745854235333,1.6792,1763.2,1763.1,1.13385]
[1745854235539,3.2078,1762.8,1762.1,0.9626]
[1745854235740,4.34223,1762.2,1762.1,0.9626]
[1745854235934,3.2078,1762.2,1761.6,1.6143]
[1745854236242,1.13475,1761.7,1761.6,42.4143]
[1745854236438,1.13475,1761.7,1761.6,40.8]
[1745854236635,0.44992831,1761.7,1761.6,41.93482]
[1745854236836,0.44992831,1761.7,1761.6,47.26482]
[1745854237041,0.44992831,1761.7,1761.6,46.13]
[1745854237242,2.81392,1761.8,1761.6,46.13]
[1745854237446,2.81392,1761.8,1761.6,48.87908]
[1745854237743,1.13462,1761.9,1761.7,1.13472]
[1745854237937,2.77996,1762.0,1761.8,4.9492]
[1745854238336,2.77996,1762.0,1761.9,5.33]
[1745854238532,1.13456,1762.0,1761.9,7.0714]
[1745854238740,6.04375,1762.3,1761.9,7.0714]
[1745854238741,3.2078,1762.3,1761.9,7.0714]
[1745854238936,3.2078,1762.3,1762.1,1.13447]
[1745854238937,0.44979783,1762.2,1762.1,1.13447]
[1745854239136,6.2452,1762.6,1762.2,4.34223]
[1745854239437,1.13432,1762.4,1762.3,5.331]
[1745854239641,1.13432,1762.4,1762.3,7.0724]
[1745854239836,1.58396301,1762.4,1762.3,7.0724]
[1745854240041,1.13475,1761.7,1761.6,41.7628]
[1745854240344,1.13475,1761.7,1761.6,0.9628]
[1745854240642,6.58439301,1761.7,1761.6,0.9628]
[1745854240843,8.22979301,1761.7,1761.6,0.9628]
[1745854241731,3.22979301,1761.7,1761.6,0.9628]
[1745854241942,1.13482,1761.6,1761.5,1.13485]
[1745854242143,1.7311,1761.6,1761.4,46.197]
[1745854242336,1.7311,1761.6,1761.5,1.13488]
[1745854242538,2.18074301,1761.6,1761.5,1.13488]
[1745854242839,1.13488,1761.5,1761.4,46.197]
[1745854243036,6.07378,1761.5,1761.4,46.197]
[1745854243335,1.13501,1761.3,1761.2,7.52469467]
[1745854243534,4.79245301,1761.3,1761.2,7.52469467]
[1745854243942,3.65744301,1761.3,1761.2,8.65976467]
[1745854244243,0.44964301,1761.3,1761.2,8.65976467]
[1745854244441,1.7311,1761.5,1761.2,9.28999467]
[1745854244742,4.3424,1762.0,1761.5,2.83714]
[1745854244933,4.34241,1762.0,1761.8,1.13466]
[1745854245133,1.6221,1761.9,1761.8,1.13466]
[1745854245339,2.75672,1761.9,1761.8,1.13466]
[1745854245540,1.6221,1761.9,1761.8,1.13466]
[1745854245732,1.6221,1761.9,1761.6,10.00031]
[1745854245733,5.888,1762.3,1762.1,1.13448]
[1745854245935,5.96433,1762.2,1762.1,1.13449]
[1745854246238,2.75655,1762.2,1762.1,1.13449]
[1745854246445,1.13449,1762.1,1762.0,5.398]
[1745854246644,12.225,1762.4,1762.0,6.53256]
[1745854246849,7.4383,1762.4,1762.3,1.13436]
[1745854247149,7.4383,1762.4,1762.3,6.53236]
[1745854247448,5.888,1762.4,1762.3,6.53236]
[1745854248346,7.5781,1762.4,1762.3,6.53236]
[1745854248741,8.7124,1762.4,1762.3,6.53236]
[1745854248941,7.5781,1762.4,1762.3,6.53236]
[1745854249448,16.2949,1762.4,1760.8,2.83833]
[1745854249641,2.83711,1761.6,1760.7,8.23649]
[1745854249947,4.34286,1761.3,1761.0,1.13518]
[1745854250245,1.7099,1761.2,1761.1,40.8]
[1745854250442,1.7099,1761.2,1761.0,6.53318]
[1745854250443,6.05277,1761.2,1761.0,1.13518]
[1745854250642,4.9177,1761.2,1761.0,6.53318]
[1745854250844,6.0528,1761.2,1761.0,6.53318]
[1745854251144,1.13514,1761.1,1761.0,46.198]
[1745854251349,2.84504,1761.1,1761.0,46.199]
[1745854251549,2.84504,1761.1,1761.0,5.399]
[1745854252040,1.7099,1761.1,1760.9,40.8]
[1745854252242,4.343,1761.0,1760.9,46.199]
[1745854252644,2.5576,1761.1,1760.9,46.199]
[1745854252845,2.5576,1761.1,1760.9,47.33425]
[1745854252846,3.6928,1761.1,1760.9,47.33425]
[1745854253044,3.6928,1761.1,1761.0,1.1352]
[1745854253250,2.5576,1761.1,1761.0,1.1352]
[1745854253554,0.8477,1761.1,1761.0,2.8652]
[1745854255546,0.8477,1761.1,1761.0,1.1352]
[1745854255752,0.8477,1761.1,1760.9,46.199]
[1745854255952,0.8477,1761.1,1761.0,1.1352]
[1745854256155,1.98284,1761.1,1761.0,1.73]
[1745854256353,3.65194,1761.1,1761.0,1.73]
[1745854256554,3.65194,1761.1,1761.0,2.8652]
[1745854256555,1.6691,1761.1,1761.0,2.8652]
[1745854256950,4.34283,1761.3,1761.2,1.13507]
[1745854257151,1.6691,1761.4,1761.3,1.13501]
[1745854257547,1.6691,1761.4,1761.3,6.53501]
[1745854257753,2.80404,1761.4,1761.3,5.4]
[1745854258048,2.2707,1761.5,1761.4,1.13494]
[1745854258256,3e-06,1761.5,1761.4,5.94154]
[1745854258556,3e-06,1761.5,1761.4,10.94154]
[1745854259252,3e-06,1761.5,1761.4,51.74154]
[1745854260258,7.27517583,1762.0,1761.9,1.13462]
[1745854260449,7.27517583,1762.0,1761.9,9.74142]
[1745854260651,7.27517583,1762.0,1761.9,14.74142]
[1745854260845,7.27517583,1762.0,1761.9,52.33362]
[1745854261043,1.13456,1762.0,1761.9,42.4075]
[1745854261245,4.8805,1762.0,1761.9,46.199]
[1745854261558,1.13443,1762.2,1762.0,1.13454]
[1745854261757,1.13452,1762.1,1761.9,47.8065]
[1745854261948,1.13452,1762.1,1762.0,1.13456]
[1745854262149,3.2078,1762.1,1762.0,1.13456]
[1745854262453,1.6727,1762.2,1762.1,1.13449]
[1745854262857,8.88096,1761.9,1760.5,2.83878]
[1745854263054,3.2078,1760.8,1760.7,1.1354]
[1745854263251,3.2078,1761.1,1761.0,1.1352]
[1745854263446,3.2078,1761.1,1761.0,6.5342]
[1745854263652,3.2078,1761.1,1761.0,1.1352]
[1745854263856,3.2078,1761.1,1761.0,6.5342]
[1745854264159,3.2078,1761.3,1761.2,1.13506]
[1745854264349,3.65235957,1761.3,1761.2,1.13506]
[1745854264558,4.78738957,1761.3,1761.1,2.77828]
[1745854264746,3.65235957,1761.3,1761.1,1.6432]
[1745854264952,1.13507,1761.2,1761.1,2.77829]
[1745854265252,2.83769,1761.2,1760.7,46.199]
[1745854265459,4.34312,1760.9,1760.7,47.3344]
[1745854265850,4.34312,1760.9,1760.8,1.13533]
[1745854266049,4.78762957,1760.9,1760.8,1.5974]
[1745854267058,3.65235957,1760.9,1760.8,2.73273]
[1745854267263,3.65235957,1760.9,1760.8,1.5974]
[1745854267264,4.78762957,1760.9,1760.8,1.5974]
[1745854267955,3.65235957,1760.9,1760.8,2.73273]
[1745854268157,4.78762957,1760.9,1760.8,1.5974]
[1745854268459,1.13533,1760.8,1760.7,46.199]
[1745854268653,2.83933,1760.8,1760.7,46.199]
[1745854269157,1.13546,1760.6,1760.5,1.7342]
[1745854269360,4.78781957,1760.6,1760.5,8.26972]
[1745854269658,4.78781957,1760.6,1760.5,47.9342]
[1745854269846,1.13559,1760.4,1760.3,5.542]
[1745854270053,4.34339,1760.4,1760.3,5.542]
[1745854270251,4.78794957,1760.4,1760.3,5.4]
[1745854270452,4.78794957,1760.4,1760.3,46.2]
[1745854270653,3.65235957,1760.4,1760.3,6.53565]
[1745854271052,3.65235957,1760.4,1760.3,47.33565]
[1745854271247,4.78794957,1760.4,1760.3,46.2]
[1745854271454,6.50094957,1760.4,1760.3,5.4]
[1745854272252,1.13572,1760.2,1760.1,41.93578]
[1745854272559,4.34352,1760.2,1760.1,40.8]
[1745854272758,4.78807957,1760.2,1760.1,40.8]
[1745854273262,4.78807957,1760.2,1760.1,41.93578]
[1745854273761,3.65235957,1760.2,1760.1,41.93578]
[1745854274562,3.985,1760.5,1760.4,1.13559]
[1745854274857,3.2078,1760.5,1760.3,5.407]
[1745854275061,1.7034,1760.4,1760.3,5.407]
[1745854275252,3.28309822,1760.4,1760.3,5.407]
[1745854275457,3.28309822,1760.4,1760.1,43.59734]
[1745854275458,1.13572,1760.2,1760.1,43.59734]
[1745854275659,3.2078,1760.2,1760.1,43.59734]
[1745854275857,3.65190822,1760.2,1760.1,43.59734]
[1745854276256,0.44410822,1760.2,1760.1,43.59734]
[1745854276460,0.1163,1760.5,1760.4,1.13559]
[1745854276661,1.69603808,1760.5,1760.4,1.13559]
[1745854276858,1.13559,1760.4,1760.3,1.13565]
[1745854277058,1.13565,1760.3,1760.2,1.6616]
[1745854277250,3.28326808,1760.3,1760.2,2.79732]
[1745854277456,3.28326808,1760.3,1760.2,1.6616]
[1745854278064,2.14761808,1760.3,1760.2,2.79732]
[1745854278261,0.44421808,1760.3,1760.2,2.79732]
[1745854279564,9.0958,1761.0,1760.9,1.13527]
[1745854279763,8.65455307,1761.2,1761.1,1.13514]
[1745854280264,5.44675307,1761.2,1761.1,1.13514]
[1745854280461,5.44675307,1761.2,1761.1,41.93514]
[1745854280962,9.78962307,1761.2,1761.1,41.93514]
[1745854281164,9.78962307,1761.2,1761.1,40.8]
[1745854281362,1.13514,1761.1,1761.0,5.407]
[1745854281558,2.75934,1761.1,1761.0,5.407]
[1745854281767,1.13527,1760.9,1760.8,7.1107]
[1745854281957,4.34307,1760.9,1760.8,7.1107]
[1745854282269,4.34311,1760.9,1760.7,41.93534]
[1745854282566,1.13533,1760.8,1760.7,40.8]
[1745854282751,1.1354,1760.7,1760.6,5.407]
[1745854282957,1.13556,1760.5,1760.4,5.407]
[1745854283158,4.34336,1760.5,1760.4,5.407]
[1745854283358,4.34336,1760.5,1760.4,46.207]
[1745854283763,4.34336,1760.5,1760.4,47.34259]
[1745854283764,3.2078,1760.5,1760.4,47.34259]
[1745854284063,3.2078,1760.5,1760.4,48.95379]
[1745854285862,2.9991,1760.8,1760.5,1.13552]
[1745854286062,2.9991,1760.8,1760.7,1.1354]
[1745854286268,2.9991,1760.8,1760.6,2.74661]
[1745854286457,3.2078,1760.7,1760.6,2.74661]
[1745854286657,3.2078,1760.7,1760.6,1.13541]
[1745854287968,4.8892,1760.9,1760.8,1.13533]
[1745854288164,3.2078,1760.9,1760.8,1.13533]
[1745854288465,3.2078,1761.3,1761.2,1.13507]
[1745854288660,4.34281,1761.3,1761.2,5.408]
[1745854288864,4.34281,1761.3,1761.2,6.54307]
[1745854289259,3.2078,1761.3,1761.2,6.54307]
[1745854290071,2.9988,1761.4,1761.3,1.13501]
[1745854290565,4.13374,1761.4,1761.3,1.13501]
[1745854290756,2.9988,1761.4,1761.3,1.13501]
[1745854290954,2.9988,1761.4,1761.2,6.54303]
[1745854291169,3.2078,1761.3,1761.2,6.54302]
[1745854291668,2.9988,1761.4,1761.3,1.13501]
[1745854291861,3.44071435,1761.4,1761.2,6.54302]
[1745854292169,4.34281,1761.3,1761.2,5.408]
[1745854292367,4.78472435,1761.3,1761.2,5.408]
[1745854293156,4.78472435,1761.3,1761.2,6.54307]
[1745854293563,4.78472435,1761.3,1761.2,5.408]
[1745854294068,3.64971435,1761.3,1761.2,6.54207]
[1745854294566,4.78472435,1761.3,1761.2,6.54207]
[1745854294968,3.64971435,1761.3,1761.2,6.54207]
[1745854295268,4.78472435,1761.3,1761.2,5.407]
[1745854295465,6.43412435,1761.3,1761.2,5.407]
[1745854295671,1.13507,1761.2,1761.1,0.1419]
[1745854295965,2.88937,1761.2,1761.1,0.1419]
[1745854296167,9.0958,1761.3,1761.2,1.13507]
[1745854296869,9.53789578,1761.3,1761.2,1.13507]
[1745854297161,3.64989578,1761.3,1761.2,1.13507]
[1745854297363,1.161,1761.5,1761.2,5.0]
[1745854297664,5.44675307,1761.8,1761.7,1.13475]
[1745854297864,5.44675307,1761.8,1761.7,47.34075]
[1745854298069,5.44675307,1761.8,1761.7,52.34075]
[1745854298265,5.44675307,1761.8,1761.7,47.34075]
[1745854298466,7.27517583,1761.9,1761.8,1.13469]
[1745854298663,5.89982468,1761.9,1761.8,2.65979]
[1745854299474,5.89982468,1761.9,1761.8,7.65979]
[1745854300168,5.89982468,1761.9,1761.8,2.65979]
[1745854300564,9.10762468,1761.9,1761.7,47.3407]
[1745854300872,10.24226468,1761.9,1761.7,47.3407]
[1745854301164,10.24228468,1761.9,1761.7,47.34072]
[1745854301368,9.10762468,1761.9,1761.8,1.13469]
[1745854301768,14.10762468,1761.9,1761.7,46.206]
[1745854302072,2.78389,1761.8,1761.7,46.206]
[1745854302370,1.13507,1761.2,1761.1,0.1419]
[1745854302567,4.34287,1761.2,1761.1,5.3479]
[1745854302772,3.2078,1761.2,1761.1,6.48304]
[1745854303073,4.34287,1761.2,1761.1,5.3479]
[1745854303471,4.34287,1761.2,1761.1,6.48304]
[1745854303673,11.93289,1761.6,1761.1,5.3479]
[1745854303867,1.13501,1761.3,1761.2,1.6891]
[1745854304262,1.13507,1761.2,1761.1,0.1419]
[1745854304566,1.1352,1761.0,1760.9,5.206]
[1745854304770,4.343,1761.0,1760.9,5.206]
[1745854305566,9.0958,1761.3,1760.9,5.206]
[1745854305770,1.13512,1761.2,1761.0,2.78355]
[1745854305959,1.13512,1761.2,1761.1,1.13514]
[1745854306165,1.13514,1761.1,1761.0,2.78355]
[1745854306465,4.34294,1761.1,1761.0,2.78355]
[1745854306668,4.34294,1761.1,1761.0,1.6484]
[1745854307070,3.2078,1761.1,1761.0,2.7836]
[1745854307766,4.34294,1761.1,1761.0,2.7836]
[1745854308269,1.1352,1761.0,1760.9,47.14121]
[1745854308471,1.7117,1761.0,1760.9,47.14121]
[1745854308973,3.2078,1761.1,1761.0,1.1352]
[1745854309172,3.2078,1761.1,1761.0,2.8698]
[1745854309372,4.34294,1761.1,1761.0,2.8698]
[1745854309575,6.05464,1761.1,1761.0,1.7346]
[1745854309971,1.1352,1761.0,1760.9,47.14121]
[1745854310171,1.7117,1761.0,1760.9,47.14121]
[1745854310574,3.2078,1761.1,1761.0,1.1352]
[1745854310866,3.2078,1761.1,1761.0,2.8698]
[1745854311372,1.1352,1761.0,1760.9,40.8]
[1745854311573,2.838,1761.0,1760.9,40.8]
[1745854311873,2.838,1761.0,1760.9,41.93527]
[1745854312065,2.838,1761.0,1760.9,43.66157]
[1745854312468,1.7028,1761.0,1760.9,43.66157]
[1745854312773,3.2078,1761.1,1761.0,1.1352]
[1745854312974,4.34294,1761.1,1761.0,1.7263]
[1745854313474,1.1352,1761.0,1760.9,41.93522]
[1745854313674,1.13527,1760.9,1760.8,8.06859]
[1745854313874,4.34307,1760.9,1760.8,8.06859]
[1745854314274,4.34307,1760.9,1760.8,48.86859]
[1745854314467,4.34307,1760.9,1760.8,46.007]
[1745854314667,3.2078,1760.9,1760.7,5.207]
[1745854314872,2.81313,1760.8,1760.7,6.34233]
[1745854315073,1.6778,1760.8,1760.7,47.14233]
[1745854315876,3.2078,1760.9,1760.8,1.13533]
[1745854316180,4.8856,1761.1,1761.0,1.1352]
[1745854316674,6.02074,1761.1,1761.0,1.1352]
[1745854317173,4.8856,1761.1,1761.0,1.1352]
[1745854317368,3.2078,1761.1,1761.0,1.1352]
[1745854317977,1.13504,1761.3,1761.2,1.13505]
[1745854318180,3.2078,1761.3,1761.2,1.13505]
[1745854318481,4.8338,1761.5,1761.4,1.13494]
[1745854318776,3.2078,1761.5,1761.4,1.13494]
[1745854319966,9.16095271,1761.7,1761.6,1.13482]
[1745854320170,9.16095271,1761.7,1761.6,6.34182]
[1745854320775,3.2078,1762.2,1761.8,2.83667]
[1745854320975,3.2078,1762.2,1762.1,1.13449]
[1745854321175,4.34225,1762.2,1762.1,40.8]
[1745854321378,5.94675,1762.2,1762.1,40.8]
[1745854322578,14.31140325,1762.4,1762.1,40.8]
[1745854322782,5.10909341,1762.4,1762.3,1.13436]
[1745854323078,3.81020341,1762.4,1762.3,4.34216]
[1745854323278,3.81020341,1762.4,1762.3,10.98826]
[1745854323680,3.81020341,1762.4,1762.3,11.41294976]
[1745854323871,3.81020341,1762.4,1762.3,6.41294976]
[1745854324782,7.01800341,1762.4,1762.3,2.78046]
[1745854325078,7.01800341,1762.4,1762.3,7.78046]
[1745854325277,3.81020341,1762.4,1762.3,2.78046]
[1745854325585,3.81020341,1762.4,1761.4,6.13305963]
[1745854325586,2.83614,1762.2,1761.4,0.45861963]
[1745854325791,2.83614,1762.2,1761.1,3.2078]
[1745854325792,1.13504,1761.3,1761.2,14.83849847]
[1745854325982,4.34284,1761.3,1761.2,14.83849847]
[1745854326180,9.34284,1761.3,1761.2,14.83849847]
[1745854326384,9.34284,1761.3,1761.2,2.11222847]
[1745854326573,1.13507,1761.2,1761.1,35.29966334]
[1745854326768,3.274451,1761.2,1761.1,35.29966334]
[1745854326968,1.13552,1760.5,1760.4,6.9776]
[1745854327270,3.67077273,1760.5,1760.4,1.13559]
[1745854327484,4.16667196,1760.5,1760.4,41.93559]
[1745854327683,5.80956269,1760.5,1760.4,40.8]
[1745854328084,5.80956269,1760.5,1760.4,41.93559]
[1745854328381,5.31367273,1760.5,1760.4,40.8]
[1745854328582,6.44919273,1760.5,1760.4,40.8]
[1745854328782,6.44919273,1760.5,1760.2,6.48268]
[1745854328783,6.94488223,1760.5,1760.2,6.48268]
[1745854328987,3.2078,1760.3,1760.2,6.48272]
[1745854329183,3.67077273,1760.3,1760.2,47.28272]
[1745854329371,3.67077273,1760.3,1760.2,47.14072]
[1745854330083,3.2078,1760.3,1760.2,47.14072]
[1745854330687,3.2078,1760.3,1760.2,46.005]
[1745854330984,3.2078,1760.3,1760.2,47.14072]
[1745854331483,3.2078,1760.5,1760.4,1.13559]
[1745854331685,3.2078,1760.8,1760.3,1.6015]
[1745854331985,1.7006,1761.0,1760.4,1.13555]
[1745854331986,3.2078,1760.6,1760.4,1.13555]
[1745854332185,3.2078,1760.6,1760.5,1.13552]
[1745854332383,3.67023889,1760.6,1760.5,1.13552]
[1745854333784,3.2078,1760.8,1760.7,1.1354]
[1745854333981,1.7006,1761.0,1760.5,2.83882]
[1745854333982,3.2078,1761.0,1760.5,2.83882]
[1745854334183,0.46212254,1760.8,1760.7,1.1354]
[1745854334381,0.46212254,1760.8,1760.7,2.8322]
[1745854334690,7.26446669,1761.1,1761.0,1.1352]
[1745854334884,3.2078,1761.4,1761.3,1.13501]
[1745854335188,3.2078,1761.6,1761.5,1.13484]
[1745854335387,3.2078,1761.6,1761.5,41.93484]
[1745854335685,4.34262,1761.6,1761.5,40.8]
[1745854335988,1.13488,1761.5,1761.4,5.124]
[1745854336286,1.13496,1761.4,1761.3,5.124]
[1745854336487,4.34276,1761.4,1761.3,45.924]
[1745854336688,3.2078,1761.4,1761.3,47.05901]
[1745854336886,3.2078,1761.4,1761.3,45.924]
[1745854337087,4.34274,1761.4,1761.3,47.05901]
[1745854337288,5.98237,1761.6,1761.3,45.924]
[1745854337491,1.13488,1761.5,1761.3,47.05895]
[1745854337689,3.2078,1761.4,1761.3,47.05895]
[1745854338191,3.2078,1761.4,1761.3,47.05901]
[1745854338690,4.34274,1761.4,1761.3,47.05901]
[1745854338891,6.02184,1761.4,1761.3,47.05901]
[1745854339081,6.02184,1761.4,1761.3,45.924]
[1745854340084,4.8869,1761.4,1761.3,45.924]
[1745854340378,6.02184,1761.4,1761.3,47.05901]
[1745854340583,6.02184,1761.4,1761.3,45.924]
[1745854340988,6.02184,1761.4,1761.3,47.05901]
[1745854341287,6.02184,1761.4,1761.3,45.924]
[1745854341486,15.7749,1761.4,1760.7,2.83835]
[1745854341687,4.34307,1760.9,1760.8,6.25829]
[1745854341883,4.34307,1760.9,1760.8,45.923]
[1745854342088,3.2078,1760.9,1760.8,47.05833]
[1745854342295,1.6519,1761.1,1760.9,1.13521]
[1745854342296,5.99489,1761.1,1760.9,1.13521]
[1745854342492,3.2078,1761.0,1760.9,1.13527]
[1745854342695,3.2078,1761.0,1760.9,2.77257]
[1745854344793,5.888,1761.2,1761.1,1.13514]
[1745854345585,1.13518,1761.1,1760.9,1.6373]
[1745854345786,1.6877,1761.1,1761.0,1.1352]
[1745854345988,4.8955,1761.1,1760.9,2.77252]
[1745854346390,1.1352,1761.0,1760.9,2.77252]
[1745854346588,1.13527,1760.9,1760.8,45.923]
[1745854346794,2.82294,1761.0,1760.9,1.13527]
[1745854346999,1.13527,1760.9,1760.8,47.05829]
[1745854347191,4.34307,1760.9,1760.8,45.923]
[1745854347392,4.34307,1760.9,1760.8,47.05833]
[1745854347393,3.2078,1760.9,1760.8,47.05833]
[1745854347895,4.34307,1760.9,1760.8,47.05833]
[1745854348199,3.2078,1760.9,1760.8,47.05833]
[1745854348396,4.34307,1760.9,1760.8,47.05833]
[1745854348597,4.34307,1760.9,1760.8,40.8]
[1745854348786,1.13538,1760.8,1760.6,5.123]
[1745854348993,1.6562,1760.8,1760.7,1.13538]
[1745854349295,4.34307,1760.9,1760.8,1.13533]
[1745854349698,4.80035582,1760.9,1760.8,1.13533]
[1745854350204,1.13533,1760.8,1760.7,43.63294]
[1745854350495,1.6592,1760.8,1760.7,43.63294]
[1745854350696,3.2078,1761.3,1761.0,1.1352]
[1745854350908,10.755,1761.5,1761.1,9.5718]
[1745854351099,3.2078,1761.5,1761.4,1.13494]
[1745854351496,4.34268,1761.5,1761.4,1.13494]
[1745854351697,1.13497,1761.4,1761.3,1.13498]
[1745854351897,1.13494,1761.4,1761.3,1.13495]
[1745854352100,1.6592,1761.4,1761.3,1.13495]
[1745854352503,1.13501,1761.3,1761.2,2.74505]
[1745854352905,2.79419,1761.4,1761.3,1.13501]
[1745854353091,1.6592,1761.4,1761.3,1.13501]
[1745854353498,1.13456,1762.0,1761.9,1.13459]
[1745854353799,1.13465,1761.9,1761.7,1.13469]
[1745854353998,1.13465,1761.9,1761.7,2.90339]
[1745854354303,0.48995706,1761.8,1761.7,2.90339]
[1745854354499,2.77815,1761.9,1761.7,2.90339]
[1745854354699,0.45865207,1761.8,1761.7,2.90339]
[1745854355501,0.94920597,1761.8,1761.7,2.90339]
[1745854356205,0.45865207,1761.8,1761.7,7.90339]
[1745854356502,9.07535172,1762.3,1762.2,1.13443]
[1745854356700,9.07535172,1762.3,1762.2,6.25743]
[1745854356893,5.888,1762.5,1762.4,1.1343]
[1745854357101,4.34201,1762.6,1762.4,1.13427]
[1745854357307,4.342,1762.6,1762.5,1.13424]
[1745854357502,0.49007376,1762.6,1762.5,1.13424]
[1745854357997,0.49007376,1762.6,1762.2,45.923]
[1745854358198,9.07535172,1762.7,1762.6,1.13417]
[1745854358509,9.56513313,1762.7,1762.6,1.13417]
[1745854358705,1.13423,1762.6,1762.4,1.1343]
[1745854358900,4.34203,1762.6,1762.4,1.1343]
[1745854359100,6.07623,1762.6,1762.4,1.1343]
[1745854359500,1.13436,1762.3,1762.2,45.922]
[1745854359701,4.942,1762.6,1762.2,45.922]
[1745854359903,3.2078,1762.4,1762.3,1.13434]
[1745854360308,6.0762,1762.6,1762.4,1.13426]
[1745854360608,4.942,1762.6,1762.4,1.13426]
[1745854360810,6.07622,1762.6,1762.4,1.13426]
[1745854361105,1.13425,1762.5,1762.3,1.13431]
[1745854361308,2.83513,1762.8,1762.3,2.8359]
[1745854361309,1.13411,1762.7,1762.3,2.8359]
[1745854361504,1.13411,1762.7,1762.5,1.13422]
[1745854361804,1.13425,1762.5,1762.3,1.6639]
[1745854362007,1.13425,1762.5,1762.3,2.7982]
[1745854362213,1.13424,1762.5,1762.3,1.6639]
[1745854362413,1.13424,1762.5,1762.4,1.1343]
[1745854362713,1.13422,1762.6,1762.4,1.1343]
[1745854362913,1.13415,1762.7,1762.5,1.1342]
[1745854363110,1.6208,1762.7,1762.6,1.13417]
[1745854363413,1.62378554,1762.7,1762.5,0.1418]
[1745854363609,5.96269,1762.8,1762.6,1.13414]
[1745854363911,5.96269,1762.8,1762.6,6.10112]
[1745854364115,5.888,1762.9,1762.6,4.967]
[1745854364308,11.8505,1763.1,1762.8,1.13399]
[1745854364508,4.8286,1763.1,1762.7,6.04304]
[1745854364716,5.96246,1763.1,1762.9,1.13392]
[1745854364917,1.13391,1763.0,1762.8,1.134]
[1745854365123,1.6208,1763.1,1763.0,1.13391]
[1745854365327,1.13382,1763.2,1763.0,6.09991]
[1745854365620,3.2078,1763.2,1763.0,4.966]
[1745854365822,4.34161,1763.2,1763.0,6.09989]
[1745854366021,6.58042179,1763.4,1763.0,4.966]
[1745854366222,6.58048179,1763.4,1763.0,4.966]
[1745854366418,5.44676179,1763.4,1763.2,1.13375]
[1745854366726,5.44676179,1763.4,1763.3,40.8]
[1745854367025,6.58042179,1763.4,1763.3,40.8]
[1745854367324,5.44676179,1763.4,1763.3,41.93372]
[1745854367715,5.44676179,1763.4,1763.3,40.8]
[1745854368226,5.44676179,1763.4,1763.3,41.93372]
[1745854368628,6.58042179,1763.4,1763.3,40.8]
[1745854369023,5.44676179,1763.4,1763.3,41.93372]
[1745854369421,5.44676179,1763.4,1763.3,46.89872]
[1745854370521,5.44676179,1763.4,1763.3,40.8]
[1745854370730,6.58042179,1763.4,1763.3,45.764]
[1745854371118,3.2078,1763.6,1763.3,45.764]
[1745854371320,1.13366,1763.4,1763.3,46.89772]
[1745854371521,1.13366,1763.4,1763.3,45.764]
[1745854371717,4.34146,1763.4,1763.3,45.764]
[1745854374132,3.2078,1763.4,1763.3,48.51962]
[1745854374428,4.34146,1763.4,1763.3,47.3859]
[1745854374731,3.2078,1763.4,1763.3,48.51962]
[1745854375936,4.9726,1763.6,1763.5,1.13359]
[1745854376133,4.34134,1763.6,1763.4,1.13361]
[1745854376334,4.34134,1763.6,1763.4,2.79921]
[1745854376533,4.34134,1763.6,1763.5,1.13359]
[1745854376835,3.2078,1763.6,1763.5,2.79919]
[1745854377523,11.8422,1763.8,1763.5,1.6656]
[1745854377729,8.6344,1763.8,1763.7,1.13346]
[1745854378034,0.02142,1763.9,1763.8,1.1334]
[1745854378230,0.02142,1763.9,1763.8,2.8371]
[1745854378940,0.02142,1763.9,1763.8,7.8371]
[1745854379126,5.43265338,1764.4,1764.3,1.13308]
[1745854379327,1.13301,1764.4,1764.3,4.963]
[1745854379527,11.94250687,1764.4,1764.3,4.963]
[1745854379734,3.73470687,1764.4,1764.3,4.963]
[1745854380035,6.94250687,1764.4,1764.3,4.963]
[1745854380531,5.28170687,1764.4,1764.3,4.963]
[1745854381833,11.98134687,1764.4,1764.0,4.962]
[1745854382133,1.13321,1764.1,1764.0,6.7126]
[1745854382323,2.07546268,1764.1,1764.0,7.84587]
[1745854382624,14.66332268,1764.1,1763.3,44.69638442]
[1745854382822,1.13366,1763.4,1763.3,41.21467541]
[1745854383023,7.02155,1763.6,1763.5,1.13359]
[1745854383233,6.3772594,1763.6,1763.5,6.09559]